[Event "The Kvibergspelen 2024"]
[Site "Kviberg Park Hotel & Conference, Krutvagen 2, Gothenburg, Sweden"]
[Date "2024.09.08"]
[Round "7.14"]
[White "Nilsson, Patrik"]
[Black "Simpson, Liam"]
[Result "1-0"]
[TimeControl "15 minutes + 5 seconds per move from move one (Round 1 - 4) / 90 minutes + 30 seconds per move from move one (Round 5 - 8)"]
[WhiteFideId "1708171"]
[BlackFideId "1778048"]
[WhiteElo "2124"]
[BlackElo "1881"]

1. d4 {[%clk 01:30:57]} {[%emt 14:19:31]} d5 {[%clk 01:29:11]} {[%emt
00:01:54]} 2. Bf4 {[%clk 01:30:50]} {[%emt 00:00:37]} Nf6 {[%clk 01:28:45]}
{[%emt 00:00:56]} 3. e3 {[%clk 01:31:11]} {[%emt 00:00:09]} e6 {[%clk
01:29:11]} {[%emt 00:00:04]} 4. Nd2 {[%clk 01:31:25]} {[%emt 00:00:16]} c5
{[%clk 01:29:32]} {[%emt 00:00:09]} 5. c3 {[%clk 01:31:44]} {[%emt 00:00:11]}
Bd6 {[%clk 01:29:53]} {[%emt 00:00:09]} 6. Bg3 {[%clk 01:32:05]} {[%emt
00:00:09]} Qc7 {[%clk 01:28:55]} {[%emt 00:01:28]} 7. dxc5 {[%clk 01:32:20]}
{[%emt 00:00:16]} Qxc5 {[%clk 01:28:29]} {[%emt 00:00:56]} 8. Ngf3 {[%clk
01:32:23]} {[%emt 00:00:26]} Nbd7 {[%clk 01:26:35]} {[%emt 00:02:24]} 9. Bd3
{[%clk 01:32:19]} {[%emt 00:00:34]} O-O {[%clk 01:18:49]} {[%emt 00:08:16]} 10.
e4 {[%clk 01:27:03]} {[%emt 00:05:46]} Bxg3 {[%clk 01:14:25]} {[%emt 00:04:54]}
11. hxg3 {[%clk 01:27:01]} {[%emt 00:00:33]} dxe4 {[%clk 01:13:04]} {[%emt
00:01:50]} 12. Nxe4 {[%clk 01:20:33]} {[%emt 00:06:59]} Nxe4 {[%clk 01:09:04]}
{[%emt 00:04:30]} 13. Bxe4 {[%clk 01:20:56]} {[%emt 00:00:07]} Nf6 {[%clk
01:04:49]} {[%emt 00:04:44]} 14. Bc2 {[%clk 01:20:57]} {[%emt 00:00:30]} e5
{[%clk 01:01:40]} {[%emt 00:03:39]} 15. Qe2 {[%clk 00:53:30]} {[%emt 00:27:56]}
e4 {[%clk 00:58:30]} {[%emt 00:03:40]} 16. Nd4 {[%clk 00:50:54]} {[%emt
00:03:06]} Bg4 {[%clk 00:52:35]} {[%emt 00:06:25]} 17. Qe3 {[%clk 00:49:57]}
{[%emt 00:01:27]} h6 {[%clk 00:45:53]} {[%emt 00:07:12]} 18. O-O {[%clk
00:42:44]} {[%emt 00:07:43]} Rfe8 {[%clk 00:44:05]} {[%emt 00:02:17]} 19. Qf4
{[%clk 00:29:28]} {[%emt 00:13:48]} Rad8 {[%clk 00:39:10]} {[%emt 00:05:21]} 20.
Bb3 {[%clk 00:25:10]} {[%emt 00:04:52]} b5 {[%clk 00:32:45]} {[%emt 00:06:54]}
21. a3 {[%clk 00:23:17]} {[%emt 00:02:24]} a5 {[%clk 00:31:49]} {[%emt
00:01:26]} 22. Nc2 {[%clk 00:23:25]} {[%emt 00:00:22]} e3 {[%clk 00:26:15]}
{[%emt 00:06:04]} 23. fxe3 {[%clk 00:13:49]} {[%emt 00:10:06]} Rd2 {[%clk
00:25:38]} {[%emt 00:01:06]} 24. Nd4 {[%clk 00:12:39]} {[%emt 00:01:40]} Rxb2
{[%clk 00:24:50]} {[%emt 00:01:17]} 25. Bxf7+ {[%clk 00:08:54]} {[%emt
00:04:16]} Kxf7 {[%clk 00:23:51]} {[%emt 00:01:29]} 26. Qxg4 {[%clk 00:09:19]}
{[%emt 00:00:05]} Rxe3 {[%clk 00:20:10]} {[%emt 00:04:10]} 27. Kh1 {[%clk
00:03:50]} {[%emt 00:06:00]} Qd5 {[%clk 00:17:21]} {[%emt 00:03:19]} 28. Qh3
{[%clk 00:03:13]} {[%emt 00:01:08]} Rxc3 {[%clk 00:16:23]} {[%emt 00:01:27]} 29.
Rad1 {[%clk 00:03:12]} {[%emt 00:00:32]} Rxa3 {[%clk 00:10:30]} {[%emt
00:06:23]} 30. Rf5 {[%clk 00:02:50]} {[%emt 00:00:52]} Qe4 {[%clk 00:08:24]}
{[%emt 00:02:36]} 31. Rf4 {[%clk 00:02:07]} {[%emt 00:01:13]} Qxf4 {[%clk
00:08:40]} {[%emt 00:00:14]} 32. Qe6+ {[%clk 00:02:24]} {[%emt 00:00:13]} 1-0

[Event "The Kvibergspelen 2024"]
[Site "Kviberg Park Hotel & Conference, Krutvagen 2, Gothenburg, Sweden"]
[Date "2024.09.08"]
[Round "7.15"]
[White "Dingertz, Filip"]
[Black "Andersson, Robert"]
[Result "1/2-1/2"]
[TimeControl "15 minutes + 5 seconds per move from move one (Round 1 - 4) / 90 minutes + 30 seconds per move from move one (Round 5 - 8)"]
[WhiteFideId "1757288"]
[BlackFideId "1703226"]
[WhiteElo "1858"]
[BlackElo "2098"]

1. c4 {[%clk 01:30:57]} {[%emt 00:00:02]} c5 {[%clk 01:29:01]} {[%emt
00:02:00]} 2. Nc3 {[%clk 01:31:03]} {[%emt 00:00:24]} Nc6 {[%clk 01:28:24]}
{[%emt 00:01:07]} 3. g3 {[%clk 01:30:58]} {[%emt 00:00:35]} g6 {[%clk
01:28:38]} {[%emt 00:00:16]} 4. Bg2 {[%clk 01:31:22]} {[%emt 00:00:05]} Bg7
{[%clk 01:29:03]} {[%emt 00:00:06]} 5. e4 {[%clk 01:31:33]} {[%emt 00:00:19]}
d6 {[%clk 01:29:12]} {[%emt 00:00:20]} 6. Nge2 {[%clk 01:31:56]} {[%emt
00:00:07]} Nf6 {[%clk 01:29:24]} {[%emt 00:00:19]} 7. O-O {[%clk 01:32:17]}
{[%emt 00:00:08]} O-O {[%clk 01:29:47]} {[%emt 00:00:08]} 8. d3 {[%clk
01:30:59]} {[%emt 00:01:48]} Rb8 {[%clk 01:29:57]} {[%emt 00:00:20]} 9. h3
{[%clk 01:31:01]} {[%emt 00:00:29]} a6 {[%clk 01:30:10]} {[%emt 00:00:16]} 10.
a4 {[%clk 01:31:26]} {[%emt 00:00:04]} Ne8 {[%clk 01:30:23]} {[%emt 00:00:18]}
11. Be3 {[%clk 01:31:09]} {[%emt 00:00:47]} Nc7 {[%clk 01:30:37]} {[%emt
00:00:15]} 12. d4 {[%clk 01:31:28]} {[%emt 00:00:12]} cxd4 {[%clk 01:30:37]}
{[%emt 00:00:30]} 13. Nxd4 {[%clk 01:31:51]} {[%emt 00:00:08]} Nxd4 {[%clk
01:26:59]} {[%emt 00:04:08]} 14. Bxd4 {[%clk 01:31:39]} {[%emt 00:00:41]} Bxd4
{[%clk 01:26:00]} {[%emt 00:01:29]} 15. Qxd4 {[%clk 01:30:48]} {[%emt
00:01:20]} a5 {[%clk 01:24:15]} {[%emt 00:02:16]} 16. Nd1 {[%clk 01:16:46]}
{[%emt 00:14:32]} Ne6 {[%clk 01:24:11]} {[%emt 00:00:33]} 17. Qc3 {[%clk
01:17:11]} {[%emt 00:00:06]} Bd7 {[%clk 01:17:50]} {[%emt 00:06:51]} 18. Ne3
{[%clk 01:14:05]} {[%emt 00:03:36]} Bc6 {[%clk 01:17:54]} {[%emt 00:00:27]} 19.
f4 {[%clk 01:12:40]} {[%emt 00:01:54]} Qb6 {[%clk 01:16:45]} {[%emt 00:01:39]}
20. Kh2 {[%clk 01:12:46]} {[%emt 00:00:24]} Qd4 {[%clk 01:16:54]} {[%emt
00:00:21]} 21. Qxd4 {[%clk 01:05:49]} {[%emt 00:07:27]} Nxd4 {[%clk 01:17:15]}
{[%emt 00:00:08]} 22. Rfd1 {[%clk 01:04:26]} {[%emt 00:01:52]} Nb3 {[%clk
01:17:24]} {[%emt 00:00:22]} 23. Ra3 {[%clk 01:04:47]} {[%emt 00:00:09]} Nc5
{[%clk 01:17:48]} {[%emt 00:00:07]} 24. Nd5 {[%clk 01:05:11]} {[%emt 00:00:06]}
Bxd5 {[%clk 01:17:40]} {[%emt 00:00:38]} 25. Rxd5 {[%clk 01:05:15]} {[%emt
00:00:25]} b6 {[%clk 01:16:04]} {[%emt 00:02:06]} 26. e5 {[%clk 00:59:13]}
{[%emt 00:06:33]} dxe5 {[%clk 01:16:14]} {[%emt 00:00:20]} 27. Rxe5 {[%clk
00:57:15]} {[%emt 00:02:28]} e6 {[%clk 01:16:17]} {[%emt 00:00:26]} 28. g4
{[%clk 00:55:20]} {[%emt 00:02:26]} Rfd8 {[%clk 01:15:30]} {[%emt 00:01:17]} 29.
f5 {[%clk 00:53:45]} {[%emt 00:02:06]} Rd2 {[%clk 01:14:56]} {[%emt 00:01:03]}
30. fxe6 {[%clk 00:53:33]} {[%emt 00:00:44]} fxe6 {[%clk 01:15:09]} {[%emt
00:00:16]} 31. Rae3 {[%clk 00:47:29]} {[%emt 00:06:32]} Rf8 {[%clk 01:08:58]}
{[%emt 00:06:41]} 32. Re2 {[%clk 00:46:15]} {[%emt 00:01:45]} Rf2 {[%clk
01:08:53]} {[%emt 00:00:34]} 33. Rxf2 {[%clk 00:46:25]} {[%emt 00:00:21]} Rxf2
{[%clk 01:09:12]} {[%emt 00:00:10]} 34. b4 {[%clk 00:46:10]} {[%emt 00:00:46]}
axb4 {[%clk 00:51:11]} {[%emt 00:18:31]} 35. a5 {[%clk 00:45:44]} {[%emt
00:00:57]} Nd3 {[%clk 00:31:35]} {[%emt 00:20:05]} 36. Re3 {[%clk 00:42:58]}
{[%emt 00:03:16]} Nf4 {[%clk 00:31:11]} {[%emt 00:00:53]} 37. axb6 {[%clk
00:41:14]} {[%emt 00:02:15]} Rxg2+ {[%clk 00:22:11]} {[%emt 00:09:29]} 38. Kh1
{[%clk 00:41:37]} {[%emt 00:00:07]} Rd2 {[%clk 00:22:34]} {[%emt 00:00:07]} 39.
b7 {[%clk 00:41:16]} {[%emt 00:00:53]} Rd8 {[%clk 00:22:56]} {[%emt 00:00:06]}
40. c5 {[%clk 00:41:28]} {[%emt 00:00:19]} Rb8 {[%clk 00:18:28]} {[%emt
00:04:58]} 41. c6 {[%clk 00:41:45]} {[%emt 00:00:13]} Nd5 {[%clk 00:18:41]}
{[%emt 00:00:17]} 42. Rd3 {[%clk 00:38:47]} {[%emt 00:03:27]} Ne7 {[%clk
00:18:44]} {[%emt 00:00:27]} 43. c7 {[%clk 00:34:46]} {[%emt 00:04:32]} Rxb7
{[%clk 00:18:05]} {[%emt 00:01:09]} 44. Rd8+ {[%clk 00:35:10]} {[%emt
00:00:05]} Kf7 {[%clk 00:15:46]} {[%emt 00:02:49]} 45. Rd7 {[%clk 00:35:33]}
{[%emt 00:00:07]} Rxc7 {[%clk 00:16:03]} {[%emt 00:00:13]} 46. Rxc7 {[%clk
00:35:57]} {[%emt 00:00:07]} g5 {[%clk 00:13:14]} {[%emt 00:03:18]} 47. Rb7
{[%clk 00:35:46]} {[%emt 00:00:42]} Kf6 {[%clk 00:13:24]} {[%emt 00:00:19]} 48.
Rxb4 {[%clk 00:36:11]} {[%emt 00:00:06]} Nd5 {[%clk 00:13:43]} {[%emt
00:00:11]} 49. Ra4 {[%clk 00:35:11]} {[%emt 00:01:30]} Nf4 {[%clk 00:13:49]}
{[%emt 00:00:24]} 50. Kh2 {[%clk 00:35:35]} {[%emt 00:00:05]} h5 {[%clk
00:14:04]} {[%emt 00:00:16]} 51. gxh5 {[%clk 00:34:13]} {[%emt 00:01:51]}
1/2-1/2

[Event "The Kvibergspelen 2024"]
[Site "Kviberg Park Hotel & Conference, Krutvagen 2, Gothenburg, Sweden"]
[Date "2024.09.08"]
[Round "7.16"]
[White "Rosenius, Ludwig"]
[Black "Krilovs, Nikolajs"]
[Result "1/2-1/2"]
[TimeControl "15 minutes + 5 seconds per move from move one (Round 1 - 4) / 90 minutes + 30 seconds per move from move one (Round 5 - 8)"]
[WhiteFideId "1750623"]
[BlackFideId "11603100"]
[WhiteElo "1755"]
[BlackElo "2054"]

1. e4 {[%clk 01:30:58]} g6 {[%clk 01:30:54]} {[%emt 00:00:07]} 2. d4 {[%clk
01:31:23]} {[%emt 00:00:05]} Bg7 {[%clk 01:31:18]} {[%emt 00:00:05]} 3. Nf3
{[%clk 01:31:19]} {[%emt 00:00:34]} d6 {[%clk 01:31:01]} {[%emt 00:00:47]} 4.
Bc4 {[%clk 01:21:24]} {[%emt 00:10:26]} Nf6 {[%clk 01:29:26]} {[%emt 00:02:06]}
5. Nc3 {[%clk 01:18:40]} {[%emt 00:03:12]} c6 {[%clk 01:29:27]} {[%emt
00:00:29]} 6. O-O {[%clk 01:16:33]} {[%emt 00:02:38]} b5 {[%clk 01:26:19]}
{[%emt 00:03:38]} 7. Bd3 {[%clk 01:15:15]} {[%emt 00:01:48]} b4 {[%clk
01:26:30]} {[%emt 00:00:20]} 8. Ne2 {[%clk 01:15:10]} {[%emt 00:00:33]} O-O
{[%clk 01:26:28]} {[%emt 00:00:33]} 9. h3 {[%clk 01:11:57]} {[%emt 00:03:44]}
Nfd7 {[%clk 01:17:57]} {[%emt 00:09:00]} 10. Be3 {[%clk 01:09:07]} {[%emt
00:03:20]} c5 {[%clk 01:16:49]} {[%emt 00:01:39]} 11. Qd2 {[%clk 00:58:59]}
{[%emt 00:10:37]} Ba6 {[%clk 01:12:56]} {[%emt 00:04:22]} 12. Bxa6 {[%clk
00:53:42]} {[%emt 00:05:48]} Nxa6 {[%clk 01:12:38]} {[%emt 00:00:48]} 13. Bh6
{[%clk 00:51:53]} {[%emt 00:02:18]} Qb6 {[%clk 01:03:44]} {[%emt 00:09:25]} 14.
Bxg7 {[%clk 00:51:40]} {[%emt 00:00:42]} Kxg7 {[%clk 01:04:01]} {[%emt
00:00:13]} 15. Qg5 {[%clk 00:49:57]} {[%emt 00:02:14]} Nf6 {[%clk 00:41:48]}
{[%emt 00:22:43]} 16. e5 {[%clk 00:45:00]} {[%emt 00:05:27]} dxe5 {[%clk
00:40:28]} {[%emt 00:01:50]} 17. Qxe5 {[%clk 00:34:26]} {[%emt 00:11:04]} Rad8
{[%clk 00:36:33]} {[%emt 00:04:25]} 18. dxc5 {[%clk 00:21:53]} {[%emt
00:13:03]} Qxc5 {[%clk 00:35:38]} {[%emt 00:01:24]} 19. Qxc5 {[%clk 00:21:35]}
{[%emt 00:00:49]} Nxc5 {[%clk 00:35:53]} {[%emt 00:00:15]} 20. Rfd1 {[%clk
00:17:31]} {[%emt 00:04:34]} Na4 {[%clk 00:33:51]} {[%emt 00:02:31]} 21. b3
{[%clk 00:14:51]} {[%emt 00:03:11]} Nb6 {[%clk 00:30:27]} {[%emt 00:03:54]} 22.
Ne5 {[%clk 00:11:22]} {[%emt 00:03:57]} Rc8 {[%clk 00:28:49]} {[%emt 00:02:09]}
23. Nd4 {[%clk 00:09:58]} {[%emt 00:01:55]} Rc7 {[%clk 00:26:40]} {[%emt
00:02:38]} 24. a3 {[%clk 00:05:33]} {[%emt 00:04:56]} a5 {[%clk 00:14:55]}
{[%emt 00:12:16]} 25. axb4 {[%clk 00:05:05]} {[%emt 00:00:58]} axb4 {[%clk
00:15:17]} {[%emt 00:00:08]} 26. Ra6 {[%clk 00:05:23]} {[%emt 00:00:12]} Nbd5
{[%clk 00:11:15]} {[%emt 00:04:31]} 27. Nc4 {[%clk 00:04:54]} {[%emt 00:00:59]}
Kg8 {[%clk 00:11:14]} {[%emt 00:00:31]} 28. Re1 {[%clk 00:03:17]} {[%emt
00:02:07]} Rfc8 {[%clk 00:10:03]} {[%emt 00:01:42]} 29. Nf3 {[%clk 00:00:54]}
{[%emt 00:02:53]} Nf4 {[%clk 00:08:37]} {[%emt 00:01:56]} 30. Rb6 {[%clk
00:00:32]} {[%emt 00:00:52]} N6d5 {[%clk 00:08:02]} {[%emt 00:01:03]} 31. Rb5
{[%clk 00:00:51]} {[%emt 00:00:12]} Rc5 {[%clk 00:07:41]} {[%emt 00:00:51]} 32.
Rxc5 {[%clk 00:00:55]} {[%emt 00:00:26]} Rxc5 {[%clk 00:08:07]} {[%emt
00:00:04]} 33. g3 {[%clk 00:01:12]} {[%emt 00:00:13]} Ne6 {[%clk 00:07:41]}
{[%emt 00:00:56]} 34. Rd1 {[%clk 00:01:17]} {[%emt 00:00:24]} Ndc7 {[%clk
00:05:32]} {[%emt 00:02:40]} 35. Rd7 {[%clk 00:01:22]} {[%emt 00:00:26]} Kf8
{[%clk 00:05:57]} {[%emt 00:00:05]} 36. Nfe5 {[%clk 00:00:49]} {[%emt
00:01:02]} Ke8 {[%clk 00:06:10]} {[%emt 00:00:17]} 37. Rd2 {[%clk 00:00:53]}
{[%emt 00:00:26]} Nd5 {[%clk 00:04:50]} {[%emt 00:01:50]} 38. Nd3 {[%clk
00:00:40]} {[%emt 00:00:43]} Rb5 {[%clk 00:05:04]} {[%emt 00:00:15]} 39. Kg2
{[%clk 00:00:41]} {[%emt 00:00:30]} Kf8 {[%clk 00:05:02]} {[%emt 00:00:32]} 40.
Nde5 {[%clk 00:00:41]} {[%emt 00:00:31]} Nec7 {[%clk 00:04:01]} {[%emt
00:01:30]} 41. Nf3 {[%clk 00:00:37]} {[%emt 00:00:35]} Rb8 {[%clk 00:04:03]}
{[%emt 00:00:27]} 42. Nfe5 {[%clk 00:00:47]} {[%emt 00:00:21]} Ra8 {[%clk
00:04:17]} {[%emt 00:00:16]} 43. Nd7+ {[%clk 00:00:46]} {[%emt 00:00:30]} Kg7
{[%clk 00:04:20]} {[%emt 00:00:27]} 44. Ndb6 {[%clk 00:01:11]} {[%emt
00:00:06]} Nxb6 {[%clk 00:04:12]} {[%emt 00:00:37]} 45. Nxb6 {[%clk 00:01:36]}
{[%emt 00:00:05]} Ra2 {[%clk 00:03:57]} {[%emt 00:00:45]} 46. Nc4 {[%clk
00:01:19]} {[%emt 00:00:47]} Kf6 {[%clk 00:03:31]} {[%emt 00:00:55]} 47. Ne3
{[%clk 00:01:19]} {[%emt 00:00:31]} Ra5 {[%clk 00:02:51]} {[%emt 00:01:09]} 48.
Rd4 {[%clk 00:01:28]} {[%emt 00:00:22]} Rb5 {[%clk 00:02:34]} 1/2-1/2

[Event "The Kvibergspelen 2024"]
[Site "Kviberg Park Hotel & Conference, Krutvagen 2, Gothenburg, Sweden"]
[Date "2024.09.08"]
[Round "7.17"]
[White "Kashwan, Hassan"]
[Black "Sigeman, Johan"]
[Result "1/2-1/2"]
[TimeControl "15 minutes + 5 seconds per move from move one (Round 1 - 4) / 90 minutes + 30 seconds per move from move one (Round 5 - 8)"]
[WhiteFideId "137122555"]
[BlackFideId "1705601"]
[WhiteElo "1936"]
[BlackElo "2032"]

1. d4 {[%clk 01:02:30]} {[%emt 00:28:29]} Nf6 {[%clk 01:30:49]} {[%emt
00:00:12]} 2. c4 {[%clk 01:02:45]} {[%emt 00:00:15]} e6 {[%clk 01:31:11]}
{[%emt 00:00:08]} 3. Nf3 {[%clk 01:02:32]} {[%emt 00:00:42]} d5 {[%clk
01:30:34]} {[%emt 00:01:08]} 4. g3 {[%clk 01:02:17]} {[%emt 00:00:45]} dxc4
{[%clk 01:30:19]} {[%emt 00:00:46]} 5. Bg2 {[%clk 01:00:16]} {[%emt 00:02:30]}
Nc6 {[%clk 01:29:29]} {[%emt 00:01:20]} 6. O-O {[%clk 00:57:41]} {[%emt
00:03:05]} Rb8 {[%clk 01:26:55]} {[%emt 00:03:04]} 7. a4 {[%clk 00:57:07]}
{[%emt 00:01:04]} a6 {[%clk 01:25:49]} {[%emt 00:01:35]} 8. a5 {[%clk
00:56:35]} {[%emt 00:01:03]} Bb4 {[%clk 01:18:58]} {[%emt 00:07:21]} 9. Na3
{[%clk 00:48:21]} {[%emt 00:08:44]} c3 {[%clk 01:11:58]} {[%emt 00:07:29]} 10.
Nc4 {[%clk 00:46:03]} {[%emt 00:02:49]} cxb2 {[%clk 01:11:02]} {[%emt
00:01:27]} 11. Bxb2 {[%clk 00:46:19]} {[%emt 00:00:12]} O-O {[%clk 01:10:36]}
{[%emt 00:00:58]} 12. Qb3 {[%clk 00:45:33]} {[%emt 00:01:16]} Qe7 {[%clk
01:04:51]} {[%emt 00:06:14]} 13. Nfe5 {[%clk 00:43:58]} {[%emt 00:02:04]} Bd7
{[%clk 00:58:17]} {[%emt 00:07:05]} 14. Nd3 {[%clk 00:37:44]} {[%emt 00:06:41]}
Rfd8 {[%clk 00:44:08]} {[%emt 00:14:42]} 15. Rfb1 {[%clk 00:30:58]} {[%emt
00:07:13]} Qf8 {[%clk 00:40:14]} {[%emt 00:04:27]} 16. Nce5 {[%clk 00:19:48]}
{[%emt 00:11:39]} Be7 {[%clk 00:34:04]} {[%emt 00:06:41]} 17. Nxd7 {[%clk
00:14:21]} {[%emt 00:05:56]} Rxd7 {[%clk 00:33:38]} {[%emt 00:00:56]} 18. Bxc6
{[%clk 00:12:29]} {[%emt 00:02:23]} bxc6 {[%emt 00:00:15]} 19. Qc4 {[%clk
00:12:40]} {[%emt 00:00:04]} Qc8 {[%clk 00:29:59]} {[%emt 00:04:39]} 20. Qxc6
{[%clk 00:10:46]} {[%emt 00:02:23]} Rd5 {[%clk 00:29:06]} {[%emt 00:01:24]} 21.
Bc3 {[%clk 00:09:48]} {[%emt 00:01:26]} Rdb5 {[%clk 00:28:56]} {[%emt
00:00:43]} 22. Rxb5 {[%clk 00:08:26]} {[%emt 00:01:51]} Rxb5 {[%clk 00:29:22]}
{[%emt 00:00:03]} 23. Nc5 {[%clk 00:07:42]} {[%emt 00:01:14]} Bxc5 {[%clk
00:26:14]} {[%emt 00:03:39]} 24. dxc5 {[%clk 00:08:04]} {[%emt 00:00:08]} Nd7
{[%clk 00:24:31]} {[%emt 00:02:13]} 25. Bd4 {[%clk 00:08:16]} {[%emt 00:00:14]}
Nb8 {[%clk 00:24:46]} {[%emt 00:00:19]} 26. Qe4 {[%clk 00:08:07]} {[%emt
00:00:36]} Qd7 {[%clk 00:19:30]} {[%emt 00:05:49]} 27. Ra3 {[%clk 00:05:25]}
{[%emt 00:03:12]} Nc6 {[%clk 00:19:24]} {[%emt 00:00:35]} 28. Rd3 {[%clk
00:05:23]} {[%emt 00:00:31]} Qd5 {[%clk 00:17:47]} {[%emt 00:02:09]} 29. Qxd5
{[%clk 00:04:37]} {[%emt 00:01:16]} exd5 {[%clk 00:18:15]} {[%emt 00:00:02]} 30.
Be3 {[%clk 00:04:39]} {[%emt 00:00:28]} Ne7 {[%clk 00:17:36]} {[%emt 00:01:10]}
31. c6 {[%clk 00:03:49]} {[%emt 00:01:19]} Nxc6 {[%clk 00:17:03]} {[%emt
00:01:03]} 32. Rc3 {[%clk 00:03:50]} {[%emt 00:00:30]} Nxa5 {[%clk 00:16:35]}
{[%emt 00:00:57]} 33. Rxc7 {[%clk 00:04:12]} {[%emt 00:00:08]} h6 {[%clk
00:16:41]} {[%emt 00:00:24]} 34. Ra7 {[%clk 00:04:27]} {[%emt 00:00:12]} Nc4
{[%clk 00:15:32]} {[%emt 00:01:42]} 35. Rxa6 {[%clk 00:04:35]} {[%emt
00:00:22]} Nxe3 {[%clk 00:15:41]} {[%emt 00:00:20]} 36. fxe3 {[%clk 00:05:04]}
{[%emt 00:00:02]} f6 {[%clk 00:14:11]} {[%emt 00:01:59]} 37. Kf2 {[%clk
00:05:22]} {[%emt 00:00:12]} Kf7 {[%clk 00:14:32]} {[%emt 00:00:09]} 38. Ra7+
{[%clk 00:05:44]} {[%emt 00:00:09]} Kg6 {[%clk 00:14:55]} {[%emt 00:00:06]} 39.
h4 {[%clk 00:06:10]} {[%emt 00:00:05]} h5 {[%clk 00:15:14]} {[%emt 00:00:11]}
40. Rd7 {[%clk 00:06:34]} {[%emt 00:00:06]} Ra5 {[%clk 00:15:01]} {[%emt
00:00:43]} 41. Kf3 {[%clk 00:06:56]} {[%emt 00:00:08]} Rb5 {[%clk 00:15:19]}
{[%emt 00:00:12]} 42. Rd8 {[%clk 00:06:25]} {[%emt 00:01:00]} Ra5 {[%clk
00:15:41]} {[%emt 00:00:09]} 43. Rd7 {[%clk 00:06:17]} {[%emt 00:00:38]} Rb5
{[%clk 00:16:08]} {[%emt 00:00:04]} 44. Rd8 {[%clk 00:06:23]} 1/2-1/2

[Event "The Kvibergspelen 2024"]
[Site "Kviberg Park Hotel & Conference, Krutvagen 2, Gothenburg, Sweden"]
[Date "2024.09.08"]
[Round "7.18"]
[White "Kallen, Jonas"]
[Black "Sandberg, Lucas"]
[Result "1-0"]
[TimeControl "15 minutes + 5 seconds per move from move one (Round 1 - 4) / 90 minutes + 30 seconds per move from move one (Round 5 - 8)"]
[WhiteFideId "1712896"]
[BlackFideId "1773712"]
[WhiteElo "2026"]
[BlackElo "1887"]

1. e4 {[%clk 01:30:48]} {[%emt 00:00:12]} g6 {[%clk 01:30:30]} {[%emt
00:00:30]} 2. d4 {[%clk 01:31:13]} {[%emt 00:00:07]} Bg7 {[%clk 01:30:56]}
{[%emt 00:00:03]} 3. Nf3 {[%clk 01:31:34]} {[%emt 00:00:08]} d6 {[%clk
01:31:13]} {[%emt 00:00:13]} 4. Bd3 {[%clk 01:31:17]} {[%emt 00:00:47]} Nf6
{[%clk 01:30:32]} {[%emt 00:01:10]} 5. O-O {[%clk 01:31:04]} {[%emt 00:00:44]}
O-O {[%clk 01:26:08]} {[%emt 00:04:55]} 6. h3 {[%clk 01:31:00]} {[%emt
00:00:33]} c5 {[%clk 01:22:38]} {[%emt 00:04:00]} 7. c3 {[%clk 01:29:35]}
{[%emt 00:01:55]} Nc6 {[%clk 01:21:37]} {[%emt 00:01:31]} 8. Be3 {[%clk
01:27:36]} {[%emt 00:02:30]} b6 {[%clk 01:17:29]} {[%emt 00:04:38]} 9. a4
{[%clk 01:23:12]} {[%emt 00:04:53]} Bb7 {[%clk 01:16:34]} {[%emt 00:01:25]} 10.
d5 {[%clk 01:17:57]} {[%emt 00:05:47]} Nb8 {[%clk 01:16:17]} {[%emt 00:00:46]}
11. c4 {[%clk 01:13:54]} {[%emt 00:04:33]} Na6 {[%clk 01:12:00]} {[%emt
00:04:46]} 12. Nc3 {[%clk 01:11:00]} {[%emt 00:03:24]} Nd7 {[%clk 01:09:57]}
{[%emt 00:02:33]} 13. Qd2 {[%clk 01:09:52]} {[%emt 00:01:39]} Ne5 {[%clk
01:07:36]} {[%emt 00:02:51]} 14. Nxe5 {[%clk 01:09:39]} {[%emt 00:00:44]} Bxe5
{[%clk 01:07:23]} {[%emt 00:00:41]} 15. f4 {[%clk 01:09:38]} {[%emt 00:00:31]}
Bg7 {[%clk 01:07:26]} {[%emt 00:00:27]} 16. f5 {[%clk 01:07:56]} {[%emt
00:02:12]} Nc7 {[%clk 01:05:42]} {[%emt 00:02:14]} 17. Bg5 {[%clk 01:00:02]}
{[%emt 00:08:24]} Bc8 {[%clk 01:02:25]} {[%emt 00:03:48]} 18. Rf3 {[%clk
00:58:05]} {[%emt 00:02:26]} Bd7 {[%clk 00:59:38]} {[%emt 00:03:17]} 19. h4
{[%clk 00:53:55]} {[%emt 00:04:40]} Be8 {[%clk 00:53:47]} {[%emt 00:06:21]} 20.
Bh6 {[%clk 00:49:38]} {[%emt 00:04:48]} f6 {[%clk 00:50:23]} {[%emt 00:03:54]}
21. Rg3 {[%clk 00:46:56]} {[%emt 00:03:12]} Kh8 {[%clk 00:45:14]} {[%emt
00:05:38]} 22. fxg6 {[%clk 00:37:10]} {[%emt 00:10:16]} hxg6 {[%clk 00:45:33]}
{[%emt 00:00:11]} 23. e5 {[%emt 00:02:31]} dxe5 {[%clk 00:42:20]} {[%emt
00:02:43]} 24. Bxg6 {[%clk 00:34:44]} {[%emt 00:01:55]} Bxg6 {[%clk 00:42:32]}
{[%emt 00:00:18]} 25. h5 {[%clk 00:34:38]} {[%emt 00:00:37]} Rg8 {[%clk
00:37:26]} {[%emt 00:05:35]} 26. hxg6 {[%clk 00:33:17]} {[%emt 00:01:51]} 1-0